Workbook

Sheet Introduction
A3: . . . . . . . . . . . . . . . . . . . . . . . . . . . . . . . . . . . . . . . . . . . . . . . . .
B5: Guidelines For Estimating
B6: Swine Farrow-Wean to 6 kg Costs
B7: ="Based On "&'Farrow-Wean Input'!G11&" Sows "&FIXED('Farrow-Wean Input'!F27,0)&" Pigs Sold" -> Based On 600 Sows 16,944 Pigs Sold
G9: Date: | H9: June, 2025
B12: This guide is designed to provide you with planning information and a format for calculating costs of production of a swine farrow to 6kg enterprise in Manitoba. This operation is intended to represent the first stage of a three stage system. General Manitoba Agriculture recommendations are assumed in using feed and veterinary inputs. These figures provide an economic evaluation of the livestock and estimated prices required to cover all costs. Costs include labour, investment and depreciation, but do not include management costs, nor do they necessarily represent the average cost of production in Manitoba.
B22: These budgets may be adjusted by putting in your own figures. As a producer you are encouraged to calculate your own costs of production. The assumptions on which the costs are based are outlined in the supporting pages. These assumptions were arrived at using the breeding stock, management practices, and facilities seen in modern, well managed swine operations of comparable size in Manitoba. Productivity and performance assumptions are based on information collected by department specialists, feed companies and other organizations. Where individual herd productivity and performance levels differ from those listed, adjustments will be required.
B34: This tool is available as an Excel worksheet at:
B40: is also available to help
B41: determine machinery costs.
B47: Note: This budget is only a guide and is not intended as an in-depth study of the cost of production of this industry. Interpretation and use of this information is the responsibility of the user. If you need help with a budget, contact a Farm Management Specialist.

Sheet Assumptions
B2: Farrow-Wean to 6 kg Pig Cost of Production
B5: The following farrow wean to 6 kg cost of production budget is based on the assumption that all feed is purchased.
B8: ="The budget includes a land investment cost for "&'Fixed Cost'!D31&" acres, with "&'Fixed Cost'!C44&" acres rented out at $"&'Fixed Cost'!C45&" per acre, of the estimated "&ROUND(((('Farrow-Wean Input'!C94*'Farrow-Wean Input'!H96)/(40.768*2))*2.4709661),0)&" to "&ROUND(((('Farrow-Wean Input'!C94*'Farrow-Wean Input'!H96)/(26.362*2))*2.4709661),0)&" acres of total landbase that would be required for this size of livestock operation. This land base falls within the 2XP2O5 application rate, soil phosphorus levels permitting." -> The budget includes a land investment cost for 40 acres, with 0 acres rented out at $100 per acre, of the estimated 84 to 130 acres of total landbase that would be required for this size of livestock operation. This land base falls within the 2XP2O5 application rate, soil phosphorus levels permitting.
B13: The rations illustrated in this budget are examples only. Individual farm conditions should be taken into account when formulating the diets. Producers need to know what the feed intakes of their animals are. Please consult with a nutritionist for diet formulation suggestions.
B17: The Manitoba pork production industry profile is changing and this budget was specifically designed to address the need of producers who may want to analyze the cost of starting up or switching to a farrow wean 6 kg operation. Several companies are offering contracts with varying levels of guarantees. Producers need to accurately calculate their costs before they can properly make a decision.

Sheet Farrow-Wean Summary
A1: ='Farrow-Wean Input'!G11&" Sow Farrow-Wean to 6kg Cost of Production Summary - "&Introduction!H9 -> 600 Sow Farrow-Wean to 6kg Cost of Production Summary - June, 2025
E3: Purchased Feed
E4: $/Pig | G4: Total
A5: A. Operating Costs | E5: Sold | F5: $/Sow | G5: Cost | I5: Your Cost
A6: 1. | B6: Feed Costs:
B7: Sow Lactation Ration | E7: ='Farrow-Wean Input'!G40 -> 5.510365793 | F7: =ROUND(E7*'Farrow-Wean Input'!$G$27,2) -> 155.61 | G7: =ROUND(E7*'Farrow-Wean Input'!$F$27,0) -> 93368
B8: Sow Gestation Ration | E8: ='Farrow-Wean Input'!F40 -> 14.02195963 | F8: =ROUND(E8*'Farrow-Wean Input'!$G$27,2) -> 395.98 | G8: =ROUND(E8*'Farrow-Wean Input'!$F$27,0) -> 237588
B9: Boar Ration | E9: ='Farrow-Wean Input'!H40 -> 0.08123317989 | F9: =ROUND(E9*'Farrow-Wean Input'!$G$27,2) -> 2.29 | G9: =ROUND(E9*'Farrow-Wean Input'!$F$27,0) -> 1376
B10: Creep Feed | E10: ='Farrow-Wean Input'!I40 -> 0.8797124646 | F10: =ROUND(E10*'Farrow-Wean Input'!$G$27,2) -> 24.84 | G10: =ROUND(E10*'Farrow-Wean Input'!$F$27,0) -> 14906
A11: Total Feed Cost | E11: =SUM(E7:E10) -> 20.49327107 | F11: =SUM(F7:F10) -> 578.72 | G11: =SUM(G7:G10) -> 347238
A13: 2. | B13: Other Operating Costs:
B14: Veterinary Medicine & Supplies: | E14: ='Farrow-Wean Input'!C54 -> 4.957507082 | F14: =ROUND(E14*'Farrow-Wean Input'!$G$27,2) -> 140 | G14: =ROUND(E14*'Farrow-Wean Input'!$F$27,0) -> 84000
B15: Maintenance & Repairs | E15: ='Farrow-Wean Input'!C60 -> 1.983709525 | F15: =ROUND(E15*'Farrow-Wean Input'!$G$27,2) -> 56.02 | G15: =ROUND(E15*'Farrow-Wean Input'!$F$27,0) -> 33612
B16: Hydro & Propane | E16: ='Farrow-Wean Input'!C73+'Farrow-Wean Input'!C67 -> 3.728859773 | F16: =ROUND(E16*'Farrow-Wean Input'!$G$27,2) -> 105.3 | G16: =ROUND(E16*'Farrow-Wean Input'!$F$27,0) -> 63182
B17: Insurance | E17: ='Farrow-Wean Input'!I80 -> 2.015532352 | F17: =ROUND(E17*'Farrow-Wean Input'!$G$27,2) -> 56.92 | G17: =ROUND(E17*'Farrow-Wean Input'!$F$27,0) -> 34151
B18: Manure Costs | E18: ='Farrow-Wean Input'!C109 -> 0.9070424712 | F18: =ROUND(E18*'Farrow-Wean Input'!$G$27,2) -> 25.61 | G18: =ROUND(E18*'Farrow-Wean Input'!$F$27,0) -> 15369
B19: Office Supplies | E19: ='Farrow-Wean Input'!C114 -> 0.07082152975 | F19: =ROUND(E19*'Farrow-Wean Input'!$G$27,2) -> 2 | G19: =ROUND(E19*'Farrow-Wean Input'!$F$27,0) -> 1200
B20: Marketing & Transport. | E20: ='Farrow-Wean Input'!C119 -> 3.69 | F20: =ROUND(E20*'Farrow-Wean Input'!$G$27,2) -> 104.21 | G20: =ROUND(E20*'Farrow-Wean Input'!$F$27,0) -> 62523
B21: Herd Replacement | E21: ='Farrow-Wean Input'!C154 -> 2.646981015 | F21: =ROUND(E21*'Farrow-Wean Input'!$G$27,2) -> 74.75 | G21: =ROUND(E21*'Farrow-Wean Input'!$F$27,0) -> 44850
B22: Artificial Insemination | E22: ='Farrow-Wean Input'!C127 -> 2.039518414 | F22: =ROUND(E22*'Farrow-Wean Input'!$G$27,2) -> 57.6 | G22: =ROUND(E22*'Farrow-Wean Input'!$F$27,0) -> 34558
B23: Property Tax | E23: ='Farrow-Wean Input'!C166 -> 0.4780453258 | F23: =ROUND(E23*'Farrow-Wean Input'!$G$27,2) -> 13.5 | G23: =ROUND(E23*'Farrow-Wean Input'!$F$27,0) -> 8100
A24: Subtotal Operating Costs | E24: =SUM(E14:E23)+E11 -> 43.01128856 | F24: =SUM(F14:F23)+F11 -> 1214.63 | G24: =SUM(G14:G23)+G11 -> 728783
B25: Interest on Operating Costs | E25: ='Farrow-Wean Input'!C174 -> 0.6325189494 | F25: =ROUND(E25*'Farrow-Wean Input'!$G$27,2) -> 17.86 | G25: =ROUND(E25*'Farrow-Wean Input'!$F$27,0) -> 10717
A26: Total Operating Costs | E26: =SUM(E24:E25) -> 43.64380751 | F26: =SUM(F24:F25) -> 1232.49 | G26: =SUM(G24:G25) -> 739500
A28: B. Fixed Costs
B29: Buildings & Manure Storage | E29: ='Fixed Cost'!D27 -> 8.787533779 | F29: =ROUND(E29*'Farrow-Wean Input'!$G$27,2) -> 248.16 | G29: =ROUND(E29*'Farrow-Wean Input'!$F$27,0) -> 148896
B30: Barn Equipment | E30: ='Fixed Cost'!I27 -> 7.881249778 | F30: =ROUND(E30*'Farrow-Wean Input'!$G$27,2) -> 222.57 | G30: =ROUND(E30*'Farrow-Wean Input'!$F$27,0) -> 133540
B31: Breeding Stock | E31: ='Fixed Cost'!I39+'Fixed Cost'!I51 -> 2.082168079 | F31: =ROUND(E31*'Farrow-Wean Input'!$G$27,2) -> 58.8 | G31: =ROUND(E31*'Farrow-Wean Input'!$F$27,0) -> 35280
B32: Land | E32: ='Fixed Cost'!D41 -> 0.7997597896 | F32: =ROUND(E32*'Farrow-Wean Input'!$G$27,2) -> 22.59 | G32: =ROUND(E32*'Farrow-Wean Input'!$F$27,0) -> 13551
A33: Total Fixed Costs | E33: =SUM(E29:E32) -> 19.55071143 | F33: =SUM(F29:F32) -> 552.12 | G33: 331267
A35: C. Labour
B36: Wages, benefits and hired manager | E36: ='Farrow-Wean Input'!C48 -> 9.943342776 | F36: =ROUND(E36*'Farrow-Wean Input'!$G$27,2) -> 280.8 | G36: =ROUND(E36*'Farrow-Wean Input'!$F$27,0) -> 168480
A38: Total Cost of Production | E38: =E26+E33+E36 -> 73.13786171 | F38: =F26+F33+F36 -> 2065.41 | G38: =G26+G33+G36 -> 1239247
A40: Profitability and Breakeven Analysis
A42: Estimated Farmgate | E42: $/Pig | F42: $/Sow | G42: Total
B43: Market Price per weanling | E43: ='Farrow-Wean Input'!F8 -> 63 | F43: =ROUND(E43*'Farrow-Wean Input'!$G$27,2) -> 1779.12 | G43: =ROUND(E43*'Farrow-Wean Input'!$F$27,0) -> 1067472
B44: Land rental per head sold | E44: =SUM(('Fixed Cost'!C44*'Fixed Cost'!C45)/'Farrow-Wean Input'!F27) -> 0 | F44: =ROUND(E44*'Farrow-Wean Input'!$G$27,2) -> 0 | G44: =ROUND(E44*'Farrow-Wean Input'!$F$27,0) -> 0
B45: Gross Revenue / hog | E45: =SUM(E43:E44) -> 63 | F45: =SUM(F43:F44) -> 1779.12 | G45: =SUM(G43:G44) -> 1067472
A47: Marginal Returns
B48: Over Operating Costs | E48: =SUM(E45-E26) -> 19.35619249 | F48: =SUM(F45-F26) -> 546.63 | G48: =SUM(G45-G26) -> 327972
B49: Over Operating & Labour Costs | E49: =SUM(E45-E26-E36) -> 9.412849716 | F49: =SUM(F45-F26-F36) -> 265.83 | G49: =SUM(G45-G26-G36) -> 159492
B50: Over Total Costs (Net Profit) | E50: =SUM(E45-E38) -> -10.13786171 | F50: =SUM(F45-F38) -> -286.29 | G50: =SUM(G45-G38) -> -171775
A52: Operating Expense Ratio | E52: =SUM(E26/E45) -> 0.6927588493
A54: Breakeven Selling Price | E54: $/Pig
B55: Operating Costs | E55: =(E26) -> 43.64380751
B56: Operating & Labour Costs | E56: =(E26+E36) -> 53.58715028
B57: Total Costs | E57: =E38 -> 73.13786171
A59: Return On Assets (ROA) | E59: =SUM((E50+E25+'Fixed Cost'!G68)*'Farrow-Wean Input'!$F$27)/(('Fixed Cost'!D50)+(('Farrow-Wean Input'!$F$8/2)*('Farrow-Wean Input'!F27/365*'Farrow-Wean Input'!G14))) -> -0.03086470799
A61: Note: This budget is only a guide and is not intended as an in depth study of the cost of production of this industry. Interpretation and utilization of this information is the responsibility of the user.

Sheet Risk Analysis
A1: Risk & Sensitivity Analysis
C3: Purchased Feed
C4: Per Pig
A5: A. Operating Costs
B6: Feed cost | C6: ='Farrow-Wean Summary'!E11 -> 20.49327107
B7: Other Operating Costs | C7: =SUM('Farrow-Wean Summary'!E26-'Farrow-Wean Summary'!E11) -> 23.15053644
B8: Subtotal | C8: =SUM(C6:C7) -> 43.64380751
A9: B. Fixed Costs | C9: ='Farrow-Wean Summary'!E33 -> 19.55071143
A10: C. Labour | C10: ='Farrow-Wean Summary'!E36 -> 9.943342776
A11: Total Costs | C11: =SUM(C8:C10) -> 73.13786171
A13: Estimated Farmgate
B14: Price ($ per weanling) | C14: ='Farrow-Wean Summary'!E43 -> 63
B15: Weanlings sold per sow | C15: ='Farrow-Wean Input'!G27 -> 28.24
C18: Up | E18: Down
B19: Percent Market Price Variation | C19: 0.1 | E19: 0.1
B20: Percent Feed Cost Variation | C20: 0.1 | E20: 0.05
B21: Weanlings Sold Per Sow | C21: 0.5 | E21: 2.5
B24: Higher Price ($ per weanling) | C24: =SUM(C14*(1+C19)) -> 69.3
B25: Lower Price ($ per weanling) | C25: =SUM(C14*(1-E19)) -> 56.7
B26: Higher Feed Cost | C26: =SUM(C6+(C6*(C20))) -> 22.54259818
B27: Lower Feed Cost | C27: =SUM(C6-(C6*E20)) -> 19.46860752
B28: Higher Weanlings Sold Per Sow | C28: =SUM(C15+C21) -> 28.74
B29: Lower Weanlings Sold Per Sow | C29: =SUM(C15-E21) -> 25.74
A32: ="Higher Margin Scenario - Price Up "&C19*100&"%, Feed Price Down "&E20*100&"% and Weanlings Sold Per Sow Up "&C21 -> Higher Margin Scenario - Price Up 10%, Feed Price Down 5% and Weanlings Sold Per Sow Up 0.5
B33: Operating Costs | C33: =SUM(C7+((C27*'Farrow-Wean Input'!$G$27)/C28)) -> 42.28044167
B34: Total Costs | C34: =C33+C10+C9 -> 71.77449587
B35: Gross Revenue / hog | C35: =SUM(C24+'Farrow-Wean Summary'!$E$44) -> 69.3
B36: Marginal Returns
B37: Over Operating Costs | C37: =SUM(C35-C33) -> 27.01955833
B38: Over Operating & Labour Costs | C38: =SUM(C35-C33-C10) -> 17.07621556
B39: Over Total Costs (Net Profit) | C39: =SUM(C35-C34) -> -2.474495868
B40: Operating Expense Ratio | C40: =SUM(C33/C35) -> 0.6101073833
A42: ="Lower Margin Scenario - Price Down "&E19*100&"%, Feed Price Up "&C20*100&"% and Weanlings Sold Per Sow Down "&E21 -> Lower Margin Scenario - Price Down 10%, Feed Price Up 10% and Weanlings Sold Per Sow Down 2.5
B43: Operating Costs | C43: =SUM(C7+((C26*'Farrow-Wean Input'!$G$27)/C29)) -> 47.88258665
B44: Total Costs | C44: =C9+C10+C43 -> 77.37664085
B45: Gross Revenue / hog | C45: =SUM(C25+'Farrow-Wean Summary'!$E$44) -> 56.7
B46: Marginal Returns
B47: Over Operating Costs | C47: =SUM(C45-C43) -> 8.817413348
B48: Over Operating & Labour Costs | C48: =SUM(C45-C43-C10) -> -1.125929428
B49: Over Total Costs (Net Profit) | C49: =SUM(C45-C44) -> -20.67664085
B50: Operating Expense Ratio | C50: =SUM(C43/C45) -> 0.8444900644
A53: Note: This budget is only a guide and is not intended as an in depth study of the cost of production of this industry. Interpretation and utilization of this information is the responsibility of the user.

Sheet Farrow-Wean Input
A1: Farrow to 6kg Pig Production Costs
A3: 1. | B3: This input table outlines the production assumptions used.
A4: 2. | B4: Buildings and equipment are valued at new cost.
A5: 3. | B5: Manure haulage is contracted out.
A6: 4. | B6: Gilts are purchased for herd replacement.
C8: Weanling market price / head | F8: 63
A10: Indicators of Productivity
A11: Sows | G11: 600 | H11: 300 | I11: /sow
A12: Boars | G12: 3 | H12: 3000 | I12: /boar
A13: Litters/Sow/Year | G13: 2.38
A14: Average Weaning Age (days) | G14: 21
A15: Average Born Alive per Litter | G15: 13.9
A16: Percent Pre-Weaning Mortality | G16: 12.5
A17: Percent Post-Weaning Culls | G17: 2.44
A19: Herd Profile | F19: Total | G19: /Sow | H19: /Litter | I19: %Mortality
A20: Sows | F20: =G11 -> 600
A21: Boars | F21: =G12 -> 3
A22: Litters | F22: =ROUND(G22*F20,0) -> 1428 | G22: =G13 -> 2.38
A23: Pigs Born Alive | F23: =ROUND(G15*F22,0) -> 19849 | G23: =ROUND(F23/F20,2) -> 33.08 | H23: =G15 -> 13.9
A24: Pigs Died, Pre-Weaning | F24: =ROUND(G16*F23/100,0) -> 2481 | G24: =ROUND(F24/F20,2) -> 4.14 | H24: =ROUND(F24/F22,2) -> 1.74 | I24: =G16 -> 12.5
A25: Pigs Weaned | F25: =F23-F24 -> 17368 | G25: =ROUND(F25/F20,2) -> 28.95 | H25: =ROUND(F25/F22,2) -> 12.16
A26: Pigs Culled | F26: =ROUND(G17*F25/100,0) -> 424 | G26: =ROUND(F26/F20,2) -> 0.71 | H26: =ROUND(F26/F22,2) -> 0.3 | I26: =G17 -> 2.44
A27: Weaner Pigs Sold | F27: =ROUND(F25-F26,0) -> 16944 | G27: =ROUND(F27/F20,2) -> 28.24 | H27: =ROUND(F27/F22,2) -> 11.87
A29: Feed Requirements and Costs | G29: Nursing
F30: Dry Sow | G30: Sow | H30: Boar Ration | I30: Creep Feed
C31: Days average weaning age | G31: =G14 -> 21 | I31: (kg/pig)
B32: x | C32: Litters/Sow/Year | G32: =G13 -> 2.38
B33: = | C33: Days lactation/gestation | F33: =365-G33 -> 315.02 | G33: =SUM(G14*G13) -> 49.98 | H33: 365
B34: x | C34: kg ration/day | F34: 3 | G34: 6.5 | H34: 3 | I34: 0.5
B35: x | C35: ration cost per tonne | F35: 419 | G35: 479 | H35: 419 | I35: 1502
B36: x | C36: boars | H36: =G12 -> 3
B37: ÷ | C37: kg/tonne | F37: 1000 | G37: 1000 | H37: 1000
B38: x | C38: pigs born alive/sow/year | I38: =G23 -> 33.08
B39: ÷ | C39: pigs sold/sow/year | F39: =G27 -> 28.24 | G39: =G27 -> 28.24 | H39: =F27 -> 16944 | I39: =G27 -> 28.24
B40: = | C40: /pig sold | F40: =(F33*F34*F35/F37)/F39 -> 14.02195963 | G40: =(G31*G32*G34*G35/1000)/G39 -> 5.510365793 | H40: =(H33*H34*H35*H36/H37)/H39 -> 0.08123317989 | I40: =((I34*I35/1000)*I38)/I39 -> 0.8797124646
A42: Labour
C43: 120 | D43: hours/week
B44: x | C44: 52 | D44: weeks/year
B45: = | C45: =C43*52 -> 6240 | D45: ="total hours/year ("&C45/G11&" hrs/sow)" -> total hours/year (10.4 hrs/sow)
B46: x | C46: 27 | D46: wage/hour (includes hired manager)
B47: ÷ | C47: =F27 -> 16944 | D47: pigs sold
B48: = | C48: =(C45*C46)/C47 -> 9.943342776 | D48: /pig sold
A50: Veterinary Medicine & Supplies
C51: 140 | D51: Professional Services/sow
B52: + | C52: 0 | D52: Medication/sow
B53: ÷ | C53: =G27 -> 28.24 | D53: pigs sold/sow/year
B54: = | C54: =SUM(C51:C52)/C53 -> 4.957507082 | D54: /pig sold
A56: Maintenance & Repair
C57: 1.5 | D57: % of Total Capital Investment
B58: x | C58: ='Fixed Cost'!D14+'Fixed Cost'!I14 -> 2240798.279 | D58: total buildings and equipment cost
B59: ÷ | C59: =F27 -> 16944 | D59: pigs sold
B60: = | C60: =SUM((C57/100)*C58)/C59 -> 1.983709525 | D60: /pig sold
A62: Hydro & Propane
C63: 450 | D63: Hydro usage - kwhr/sow
B64: x | C64: =G11 -> 600 | D64: sows
B65: x | C65: 0.09234 | D65: Hydro rate per kwhr
B66: ÷ | C66: =F27 -> 16944 | D66: pigs sold
B67: = | C67: =SUM((C63*C64*C65)/C66) -> 1.471423513 | D67: /pig sold
C69: 85 | D69: Propane usage - litres/sow
B70: x | C70: =G11 -> 600 | D70: sows
B71: x | C71: 0.75 | D71: Propane rate per litre
B72: ÷ | C72: =F27 -> 16944 | D72: pigs sold
B73: = | C73: =SUM((C69*C70*C71)/C72) -> 2.257436261 | D73: /pig sold
A75: Insurance
C76: 0.78 | D76: /$100 Capital Invested - Buildings and Equip. | I76: =SUM('Fixed Cost'!D14+'Fixed Cost'!I14)*C76/100/$F$27 -> 1.031528953
C77: 0.88 | D77: /$100 Capital Invested - Breeding Stock | I77: =SUM((G11*H11)+(G12*H12)+(F8*F27))*C77/100/$F$27 -> 0.6525586402
C78: 0.78 | D78: /$100 Capital Invested - Business Interuption
C79: 1200 | D79: per sow - Business Interuption Value | I79: =SUM(C79*G11*C78/100/F27) -> 0.3314447592
H80: /pig sold | I80: =SUM(I76:I79) -> 2.015532352
A82: Manure Costs
B83: Haulage | D83: 22.7 | E83: litres/sow/day ³ | G83: ³ 1000 litres = 35.314 cubic feet
B84: x | C84: 365 | D84: days/year
B85: x | C85: =G11 -> 600 | D85: average inventory of sows
B86: x | C86: 0.003 | D86: /litre = | F86: =C86*4.54609 -> 0.01363827 | G86: /gallon
B87: ÷ | C87: =F27 -> 16944 | D87: pigs sold
B88: = | C88: =(D83*C84*C85*C86)/C87 -> 0.8801876771 | D88: /pig sold
B89: Estimated Nutrient Value
C90: =D83 -> 22.7 | D90: litres/pig/day
B91: x | C91: 365 | D91: days/year
B92: x | C92: =C85 -> 600 | D92: average inventory of pigs
B93: ÷ | C93: 1000
B94: = | C94: =SUM((C90*C91*C92)/1000) -> 4971.3 | D94: # of 1000 litres of manure
G95: Nitrogen | H95: Phosphate | I95: Potassium
C96: kg per 1000 litres | G96: 2.09 | H96: 0.56 | I96: 0.89
B97: x | C97: # of 1000 litres of manure | G97: =C94 -> 4971.3 | H97: =C94 -> 4971.3 | I97: =C94 -> 4971.3
B98: x | C98: % nutrient value recovery | G98: 60 | H98: 0 | I98: 0
B99: ÷ | C99: lbs per kg | G99: 2.2045855 | H99: 2.2045855 | I99: 2.2045855
B100: x | C100: fertilizer value per lb. | G100: 0.9 | H100: 0.9 | I100: 0.5
B101: ÷ | C101: pigs sold | G101: =F27 -> 16944 | H101: =F27 -> 16944 | I101: =F27 -> 16944
B102: = | C102: estimated nutrient value / pig sold | G102: =SUM((G96*G97*(G98/100)/G99)*G100)/G101 -> 0.1501990302 | H102: =SUM((H96*H97*(H98/100)/H99)*H100)/H101 -> 0 | I102: =SUM((I96*I97*(I98/100)/I99)*I100)/I101 -> 0
B103: Odour control & Mgmt Fees | G103: * kg/1000 L x 10 = lbs/1000 imp. Gallons
C104: 0 | D104: Odour control (barley straw)
B105: + | C105: 3000 | D105: Manure Management Fee
B106: ÷ | C106: =F27 -> 16944 | D106: pigs sold
B107: = | C107: =(C104+C105)/C106 -> 0.1770538244 | D107: /pig sold
B109: = | C109: =C88+C107-(G102+H102+I102) -> 0.9070424712 | D109: /pig sold
A111: Office Supplies
B112: x | C112: 2 | E112: $/sow
B113: ÷ | C113: ='Farrow-Wean Input'!$G$27 -> 28.24 | E113: pigs/sow
B114: = | C114: =C112/C113 -> 0.07082152975 | E114: /pig sold
A116: Marketing & Transportation
C117: 3.5 | D117: marketing & transportation/weaner pig sold
B118: + | C118: 0.19 | D118: Board Levy/weaner pig sold
B119: = | C119: =SUM(C117:C118) -> 3.69 | D119: /pig sold
A121: AI Cost
C122: 2.2 | E122: Number of services/sow
B123: x | C123: 11 | E123: Cost/dose (semen)
B124: x | C124: =G11 -> 600 | E124: sows
B125: x | C125: =G13 -> 2.38 | E125: Litters/Sow/Year
B126: ÷ | C126: =F27 -> 16944 | E126: pigs sold
B127: = | C127: =(((C122*C123)*C124)*C125)/C126 -> 2.039518414 | E127: /pig sold
A129: Breeding Herd Replacement
A130: Sow | C130: 180 | E130: kg/sow (cull weight)
B131: x | C131: 77.3 | E131: /100 kg live
B132: = | C132: =C130*C131/100 -> 139.14 | E132: /sow value of cull
C134: ='Farrow-Wean Input'!H11 -> 300 | E134: /sow value of replacement
B135: - | C135: =C132 -> 139.14 | E135: /sow value of cull
B136: = | C136: =C134-C132 -> 160.86 | E136: net replacement cost
B137: x | C137: 42 | E137: percent sow culling rate
B138: ÷ | C138: =G27 -> 28.24 | E138: pigs sold/sow/year
B139: = | C139: =(C136*C137/100)/C138 -> 2.392393768 | E139: /pig sold
A141: Boar | C141: 225 | E141: kg/boar (cull weight)
B142: x | C142: =C131*0.714 -> 55.1922 | E142: /100 kg live
B143: = | C143: =C141*C142/100 -> 124.18245 | E143: /boar value of cull
C145: =H12 -> 3000 | E145: /boar value of replacement
B146: - | C146: =C143 -> 124.18245 | E146: /boar value of cull
B147: = | C147: =C145-C146 -> 2875.81755 | E147: net replacement cost
B148: x | C148: 50 | E148: % culling rate
B149: x | C149: =G12 -> 3 | E149: number of boars
B150: ÷ | C150: =G11 -> 600 | E150: number of sows
B151: ÷ | C151: =G27 -> 28.24 | E151: pigs sold/sow/year
B152: = | C152: =(C147*C148/100*C149/C150)/C151 -> 0.2545872477 | E152: /pig sold
B154: = | C154: =C139+C152 -> 2.646981015 | E154: Total/pig sold
A156: Property Taxes
C157: 7500 | E157: taxes on barn and land
B158: ÷ | C158: =F27 -> 16944 | E158: pigs sold
B159: = | C159: =C157/C158 -> 0.4426345609 | E159: /pig sold
C161: 15 | E161: taxes on land
B162: x | C162: ='Fixed Cost'!D31 -> 40 | E162: acres
B163: ÷ | C163: =F27 -> 16944 | E163: pigs sold
B164: = | C164: =(C161*C162)/C163 -> 0.03541076487 | E164: /pig sold
B166: = | C166: =C159+C164 -> 0.4780453258 | E166: Total/pig sold
A168: Interest on Operating Cost
C169: ='Farrow-Wean Summary'!E24 -> 43.01128856 | E169: subtotal operating
B170: ÷ | C170: 2 | E170: average
B171: x | C171: =365/G13 -> 153.3613445 | E171: days farrow to farrow
B172: ÷ | C172: 365 | E172: days per year
B173: x | C173: 7 | E173: % operating interest rate
B174: = | C174: =((C169/C170)*C171/C172)*C173/100 -> 0.6325189494 | E174: /pig sold
A177: ³ FOOTNOTE: 1 cubic metre = 1000 litres
D178: 1 cubic metre = 35.314 cubic feet
D179: 1 cubic metre = 219.97 imperial gallons

Sheet Fixed Cost
A1: Fixed Costs
B3: Pig Places1
B4: Gestation | C4: ='Farrow-Wean Input'!G11 -> 600 | D4: 27 | E4: ft.2 per Pig Place | G4: =D4*C4 -> 16200 | H4: ft.2 Total
B5: Farrowing | C5: ='Farrow-Wean Input'!F25/'Farrow-Wean Input'!G13 -> 7297.478992 | D5: 1.07 | E5: ft.2 per Pig Place | G5: 7808.302521 | H5: ft.2 Total
A8: Buildings | C8: $/pig place | D8: Total | F8: Barn Equipment | H8: $/pig place | I8: Total
B9: Gestation | C9: 1750 | D9: =C9*$C$4 -> 1050000 | E9: ="($"&ROUND((C9*$C$4)/$G$4,0)&"/sq.ft.) " -> ($65/sq.ft.) | G9: Gestation | H9: 720 | I9: =H9*$C$4 -> 432000 | J9: ="($"&ROUND((H9*$C$4)/$G$4,0)&"/sq.ft.) " -> ($27/sq.ft.)
B10: Farrowing | C10: 50 | D10: =C10*$C$5 -> 364873.9496 | E10: ="($"&ROUND((C10*$C$5)/$G$5,0)&"/sq.ft.) " -> ($47/sq.ft.) | G10: Farrowing | H10: 30 | I10: =H10*$C$5 -> 218924.3697 | J10: ="($"&ROUND((H10*$C$5)/$G$5,0)&"/sq.ft.) " -> ($28/sq.ft.)
B11: Office and Loading (300 sq.ft.) | C11: 25 | D11: =C11*$C$4 -> 15000 | E11: ="($"&ROUND((C11*$C$4)/300,0)&"/sq.ft.) " -> ($50/sq.ft.) | G11: Other | H11: 0 | I11: =H11*C4 -> 0 | L11: *HIDE*
B12: Manure Storage | C12: 200 | D12: =C12*$C$4 -> 120000 | G12: Fire Alarm System | H12: 5 | I12: =H12*$C$4 -> 3000 | L12: =(#REF!-#REF!)/(#REF!+#REF!) -> 
B13: Standby Generator | C13: 41.6666 | D13: =C13*$C$4 -> 24999.96 | G13: Storage Bins | H13: 20 | I13: =H13*C4 -> 12000
B14: Total Barn Cost | D14: =SUM(D9:D13) -> 1574873.91 | G14: Total Equipment Cost | I14: =SUM(I9:I13) -> 665924.3697
B16: Residual Value (End of Useful Life) | D16: 0.5 | G16: Residual Value (End of Useful Life) | I16: 0.1
B17: Useful Life (years) | D17: 25 | G17: Useful Life (years) | I17: 10
B18: Owned Barn Equity | D18: 0.25 | G18: Owned Barn Equipment Equity | I18: 0.25
B19: Barn Financed | D19: =SUM(1-D18) -> 0.75 | G19: Barn Equipment Financed | I19: =SUM(1-I18) -> 0.75
B20: Barn Opportunity Cost (Investment Rate) | D20: 0.015 | G20: Equipment Opportunity Cost (Investment Rate) | I20: 0.015
B21: Buildings Cost | G21: Barn Equipment Cost
B22: Finance Rate & Term | C22: 0.07 | D22: 20 | E22: Years | G22: Finance Rate & Term | H22: 0.07 | I22: 10 | J22: Years
B23: Principle & Interest Cost | D23: =-PMT(C22,D22,D14*D19,0) -> 111492.717 | G23: Principle & Interest Cost | I23: =-PMT(H22,I22,I14*I19,0) -> 71109.48658
B24: Buildings Depreciation Cost | D24: =(D14-(D14*D16))/D17 -> 31497.47819 | G24: Equipment Depreciation Cost | I24: =(I14-(I14*I16))/I17 -> 59933.19328
B25: Owned Building Opportunity Cost | D25: =SUM(D14*D18)*(D20) -> 5905.777161 | G25: Owned Equipment Opportunity Cost | I25: =SUM(I14*I18)*(I20) -> 2497.216387
B26: Total Cost | D26: =SUM(D23:D25) -> 148895.9724 | G26: Total Cost | I26: =SUM(I23:I25) -> 133539.8962
B27: =" Total Cost $/pig sold (based on "&TEXT('Farrow-Wean Input'!F27,"#,###")&")" -> Total Cost $/pig sold (based on 16,944) | D27: =D26/'Farrow-Wean Input'!F27 -> 8.787533779 | G27: =" Total Cost $/pig sold (based on "&TEXT('Farrow-Wean Input'!F27,"#,###")&")" -> Total Cost $/pig sold (based on 16,944) | I27: =I26/'Farrow-Wean Input'!F27 -> 7.881249778
L28: w/o harvest
A29: Land | F29: Breeding Stock - Sows | L29: =-PMT($C$22,$D$22,L12*$D$19,0) -> 
B30: Average Land value ($/acre) | D30: 4000 | G30: Sow value ($/head) | I30: ='Farrow-Wean Input'!H11 -> 300
B31: Acres | D31: 40 | G31: Owned Sow Equity | I31: 0.25
B32: Site preparation cost | D32: 36000 | G32: =" Sows Financed ("&TEXT(I30*I32,"$#,###")&" per head)" -> Sows Financed ($225 per head) | I32: =SUM(1-I31) -> 0.75 | L32: =(L12-(L12*$D$16))/$D$17 -> 
B33: Owned Land Equity | D33: 0.25 | G33: Cow Opportunity Cost (Investment Rate) | I33: 0.015
B34: Land Financed | D34: =SUM(1-D33) -> 0.75 | G34: Sow cost
B35: Land Opportunity Cost (Investment Rate) | D35: 0.015 | G35: Finance Rate & Term | H35: 0.07 | I35: 5 | J35: Years
B36: Land cost | G36: Principle & Interest Cost | I36: =-PMT(H35,I35,I30*'Farrow-Wean Input'!G11*I32,0) -> 32925.24375
B37: Finance Rate & Term | C37: 0.06 | D37: 20 | E37: Years | G37: Owned Sows Opportunity Cost | I37: =SUM(I30*'Farrow-Wean Input'!G11*I31)*(I33) -> 675
B38: Principle & Interest Cost | D38: =-PMT(C37,D37,((D30*D31)+D32)*D34,0) -> 12816.12988 | E38: =-IPMT(C37,D37,((D30*D31)+D32)*D34,0) -> 0 | G38: Total Cost | I38: =SUM(I36:I37) -> 33600.24375
B39: Owned Land Opportunity Cost | D39: =SUM(((D30*D31)+D32)*D33)*(D35) -> 735 | G39: =" Total Cost $/pig sold (based on "&TEXT('Farrow-Wean Input'!F27,"#,###")&")" -> Total Cost $/pig sold (based on 16,944) | I39: =I38/'Farrow-Wean Input'!F27 -> 1.983017218
B40: Total Cost | D40: =SUM(D38:D39) -> 13551.12988
B41: =" Total Cost $/pig sold (based on "&TEXT('Farrow-Wean Input'!F27,"#,###")&")" -> Total Cost $/pig sold (based on 16,944) | D41: =D40/'Farrow-Wean Input'!F27 -> 0.7997597896 | F41: Breeding Stock - Boars
G42: Boar value ($/head) | I42: ='Farrow-Wean Input'!H12 -> 3000
B43: Land Rental | G43: Owned Boar Equity | I43: 0.25
B44: Number of Acres rented out | C44: 0 | D44: acres | G44: =" Boars Financed ("&TEXT(I42*I44,"$#,###")&" per head)" -> Boars Financed ($2,250 per head) | I44: =SUM(1-I43) -> 0.75
B45: Land rental rate (income) | C45: 100 | D45: /acre | G45: Boar Opportunity Cost (Investment Rate) | I45: 0.015
G46: Boar cost
G47: Finance Rate & Term | H47: 0.07 | I47: 5 | J47: Years
G48: Principle & Interest Cost | I48: =-PMT(H47,I47,I42*'Farrow-Wean Input'!G12*I44,0) -> 1646.262187
G49: Owned Boars Opportunity Cost | I49: =SUM(I42*'Farrow-Wean Input'!G12*I43)*(I45) -> 33.75
B50: Total Capital Investment | D50: =D14+I14+(D30*D31)+D32+(I30*'Farrow-Wean Input'!G11)+(I42*'Farrow-Wean Input'!G12) -> 2625798.279 | G50: Total Cost | I50: =SUM(I48:I49) -> 1680.012187
B51: Total Capital Investment / Sow Place | D51: =D50/C4 -> 4376.330466 | G51: =" Total Cost $/pig sold (based on "&TEXT('Farrow-Wean Input'!F27,"#,###")&")" -> Total Cost $/pig sold (based on 16,944) | I51: =I50/'Farrow-Wean Input'!F27 -> 0.09915086092
A54: ¹ FOOTNOTE: The number of square feet in the building and the cost per square foot for buildings and equipment are approximations only. A certified building plan which is designed according to the average inventory of grower-finisher pigs should be used in order to get the exact dimensions and area for new buildings.
A56: 1 sq.ft. = 0.0929 sq.m; 1 sq.m.= 10.764 sq.ft.; 1 ft.= 0.3048 m
A57: 1 cubic metre = 1000 litres; 1 cubic metre = 35.314 cubic feet; 1 cubic metre = 219.97 imperial gallons
C61: pmt | D61: years | E61: loan amt | G61: interest
B62: Buildings | C62: =D23 -> 111492.717 | D62: =D22 -> 20 | E62: =D14*D19 -> 1181155.432 | G62: =SUM(((C62*D62)-E62)/D62) -> 52434.94539
B63: equipment | C63: =I23 -> 71109.48658 | D63: =I17 -> 10 | E63: =I14*I19 -> 499443.2773 | G63: =SUM(((C63*D63)-E63)/D63) -> 21165.15885
B64: land | C64: =D38 -> 12816.12988 | D64: =D37 -> 20 | E64: =((D31*D30)+D32)*D34 -> 147000 | G64: =SUM(((C64*D64)-E64)/D64) -> 5466.129876
B65: sows | C65: =I36 -> 32925.24375 | D65: =I35 -> 5 | E65: =I30*'Farrow-Wean Input'!H11*I32 -> 67500 | G65: =SUM(((C65*D65)-E65)/D65) -> 19425.24375
B66: boars | C66: =I48 -> 1646.262187 | D66: =I47 -> 5 | E66: =I42*'Farrow-Wean Input'!G12*'Fixed Cost'!I44 -> 6750 | G66: 296.2621875
G67: =SUM(G62:G64) -> 79066.23411 | H67: total
G68: =G67/'Farrow-Wean Input'!F27 -> 4.666326376 | H68: per pig

Sheet Ingredient-Summary
C2: Summary of Purchased Feeds Used
B4: Number of Sows | D4: ='Farrow-Wean Input'!$G$11 -> 600
B5: Total Pigs Fed | D5: ='Farrow-Wean Input'!$F$25 -> 17368
D7: Total | E7: Total | F7: Total | G7: Total
D8: per Year | E8: per Month | F8: per Pig | G8: per Pig
D9: (tonnes) | E9: (tonnes) | F9: (kgs) | G9: (lbs)
B10: Dry Sow | D10: =IF('Farrow-Wean Input'!F35<=0,0,('Farrow-Wean Input'!F34*'Farrow-Wean Input'!F33)*'Farrow-Wean Input'!F20/1000) -> 567.036 | E10: =D10/12 -> 47.253 | F10: =(D10/$D$5)*1000 -> 32.64831875 | G10: =F10*2.2046 -> 71.97648351
B11: Lactating Sow | D11: =IF('Farrow-Wean Input'!G35<=0,0,('Farrow-Wean Input'!G34*'Farrow-Wean Input'!G33)*'Farrow-Wean Input'!F20/1000) -> 194.922 | E11: =D11/12 -> 16.2435 | F11: =(D11/$D$5)*1000 -> 11.22305389 | G11: =F11*2.2046 -> 24.74234461
B12: Boar | D12: =IF('Farrow-Wean Input'!H35<=0,0,('Farrow-Wean Input'!H34*'Farrow-Wean Input'!H33)*'Farrow-Wean Input'!F21/1000) -> 3.285 | E12: =D12/12 -> 0.27375 | F12: =(D12/$D$5)*1000 -> 0.1891409489 | G12: =F12*2.2046 -> 0.4169801359
B13: Creep | D13: =IF('Farrow-Wean Input'!I35<=0,0,('Farrow-Wean Input'!I34*'Farrow-Wean Input'!F25)/1000) -> 8.684 | E13: =D13/12 -> 0.7236666667 | F13: =(D13/$D$5)*1000 -> 0.5 | G13: =F13*2.2046 -> 1.1023
B14: Total | D14: =SUM(D10:D13) -> 773.927 | E14: =SUM(E10:E13) -> 64.49391667 | F14: =SUM(F10:F13) -> 44.56051359 | G14: =SUM(G10:G13) -> 98.23810826
